Workbook

Sheet Registro
A1: TITULO | B1: ESTUDIO DE IMPACTO AMBIENTAL: PROCEDIMIENTO Y HERRAMIENTAS
A3: AUTORES | B3: ROBERTO PECHE GONZALEZ
B4: DOLORES ENCINAS MALAGON
B5: ZURIÑE GOMEZ DE BALUGERA LOPEZ DE ALDA
B6: MARIA ARRITOKIETA ORTUZAR IRAGORRI
A8: ISBN: | B8: 978-84-613-9696-2

Sheet 260-263
A1: nº de indicador: | B1: 260 | C1: función de transformación: | D1: CA=1E-04x^2 | E1: 0<x<100
A2: Indicador: | B2: Variación del valor cultural de la trama urbana, con respecto a la situación sin proyecto
A3: fórmula del indicador
A4: unidad del indicador:
A5: rango de valores del indicador: | B5: 0 - 100 | C5: valor del indicador | D5: 50
A6: Tipo de indicador | B6: 2 (T=0,25) | C6: calidad ambiental | D6: =IF(D5<0,"valor del indicador fuera de rango",IF(D5<=100,0.0001*D5^2,IF(D5>100,"valor del indicador fuera rango"))) -> 0.250
A7: valor del indicador | B7: calidad ambiental | C7: representación de la función de transformación
A8: 0 | B8: =0.0001*A8^2 -> 0.000
A9: =+A8+5 -> 5 | B9: 0.003
A10: =+A9+5 -> 10 | B10: 0.010
A11: 15 | B11: 0.023
A12: 20 | B12: 0.040
A13: 25 | B13: 0.063
A14: 30 | B14: 0.090
A15: 35 | B15: 0.123
A16: 40 | B16: 0.160
A17: 45 | B17: 0.203
A18: 50 | B18: 0.250
A19: 55 | B19: 0.303
A20: 60 | B20: 0.360
A21: 65 | B21: 0.423
A22: 70 | B22: 0.490
A23: 75 | B23: 0.563
A24: 80 | B24: 0.640
A25: 85 | B25: 0.723
A26: 90 | B26: 0.810
A27: 95 | B27: 0.903
A28: 100 | B28: 1.000
A31: nº de indicador: | B31: 261 | C31: función de transformación: | D31: CA=2,5E-01x | E31: 0<x<4
A32: Indicador: | B32: Indicador semicualitativo de la variación de la accesibilidad y permeabilidad (núcleos sin problemas) | D32: CA=1 | E32: 4<x<8
A33: fórmula del indicador
A34: unidad del indicador:
A35: rango de valores del indicador: | B35: 0 - 8 | C35: valor del indicador | D35: 7
A36: Tipo de indicador | B36: 3 (T=0,50) | C36: calidad ambiental | D36: =IF(D35<0,"valor del indicador fuera de rango",IF(D35<=4,0.25*D35,IF(D35<=8,1,IF(D35>8,"valor del indicador fuera rango")))) -> 1.000
A37: valor del indicador | B37: calidad ambiental | C37: representación de la función de transformación
A38: 0 | B38: =0.25*A38 -> 0.000
A39: =+A38+0.4 -> 0.4 | B39: =0.25*A39 -> 0.100
A40: =+A39+0.4 -> 0.8 | B40: 0.200
A41: 1.2 | B41: 0.300
A42: 1.6 | B42: 0.400
A43: 2.0 | B43: 0.500
A44: 2.4 | B44: 0.600
A45: 2.8 | B45: 0.700
A46: 3.2 | B46: 0.800
A47: 3.6 | B47: 0.900
A48: 4.0 | B48: 1.000
A49: 4.4 | B49: 1.000
A50: 4.8 | B50: 1.000
A51: 5.2 | B51: 1.000
A52: 5.6 | B52: 1.000
A53: 6.0 | B53: 1.000
A54: 6.4 | B54: 1.000
A55: 6.8 | B55: 1.000
A56: 7.2 | B56: 1.000
A57: 7.6 | B57: 1.000
A58: 8.0 | B58: 1.000
A61: nº de indicador: | B61: 262 | C61: función de transformación: | D61: CA=1,88E-01x | E61: 0<x<4
A62: Indicador: | B62: Indicador semicualitativo de la variación de la accesibilidad y permeabilidad (núcleos con problemas moderados) | D62: CA=6,25E-02x+5E-01 | E62: 4<x<8
A63: fórmula del indicador
A64: unidad del indicador:
A65: rango de valores del indicador: | B65: 0 - 8 | C65: valor del indicador | D65: 6
A66: Tipo de indicador | B66: 3 (T=0,50) | C66: calidad ambiental | D66: =IF(D65<0,"valor del indicador fuera de rango",IF(D65<=4,0.188*D65,IF(D65<=8,0.0625*D65+0.5,IF(D65>8,"valor del indicador fuera rango")))) -> 0.875
A67: valor del indicador | B67: calidad ambiental | C67: representación de la función de transformación
A68: 0 | B68: =0.188*A68 -> 0.000
A69: =+A68+0.4 -> 0.4 | B69: 0.075
A70: =+A69+0.4 -> 0.8 | B70: 0.150
A71: 1.2 | B71: 0.226
A72: 1.6 | B72: 0.301
A73: 2.0 | B73: 0.376
A74: 2.4 | B74: 0.451
A75: 2.8 | B75: 0.526
A76: 3.2 | B76: 0.602
A77: 3.6 | B77: 0.677
A78: 4.0 | B78: =0.188*A78 -> 0.752
A79: 4.4 | B79: =0.0625*A79+0.5 -> 0.775
A80: 4.8 | B80: =0.0625*A80+0.5 -> 0.800
A81: 5.2 | B81: 0.825
A82: 5.6 | B82: 0.850
A83: 6.0 | B83: 0.875
A84: 6.4 | B84: 0.900
A85: 6.8 | B85: 0.925
A86: 7.2 | B86: 0.950
A87: 7.6 | B87: 0.975
A88: 8.0 | B88: 1.000
A91: nº de indicador: | B91: 263 | C91: función de transformación: | D91: CA=1,25E-01x | E91: 0<x<8
A92: Indicador: | B92: Indicador semicualitativo de la variación de la accesibilidad y permeabilidad (núcleos con problemas fuertes)
A93: fórmula del indicador
A94: unidad del indicador:
A95: rango de valores del indicador: | B95: 0 - 8 | C95: valor del indicador | D95: 3
A96: Tipo de indicador | B96: 3 (T=0,50) | C96: calidad ambiental | D96: =IF(D95<0,"valor del indicador fuera de rango",IF(D95<=8,0.125*D95,IF(D95>8,"valor del indicador fuera rango"))) -> 0.375
A97: valor del indicador | B97: calidad ambiental | C97: representación de la función de transformación
A98: 0 | B98: =0.125*A98 -> 0.000
A99: =+A98+0.4 -> 0.4 | B99: 0.050
A100: =+A99+0.4 -> 0.8 | B100: 0.100
A101: 1.2 | B101: 0.150
A102: 1.6 | B102: 0.200
A103: 2.0 | B103: 0.250
A104: 2.4 | B104: 0.300
A105: 2.8 | B105: 0.350
A106: 3.2 | B106: 0.400
A107: 3.6 | B107: 0.450
A108: 4.0 | B108: 0.500
A109: 4.4 | B109: 0.550
A110: 4.8 | B110: 0.600
A111: 5.2 | B111: 0.650
A112: 5.6 | B112: 0.700
A113: 6.0 | B113: 0.750
A114: 6.4 | B114: 0.800
A115: 6.8 | B115: 0.850
A116: 7.2 | B116: 0.900
A117: 7.6 | B117: 0.950
A118: 8.0 | B118: 1.000

Sheet 264
A1: nº de indicador: | B1: 264 | C1: función de transformación: | D1: CA=1,78E-01x^2+2E-01 | E1: 0<x<1,5
A2: Indicador: | B2: Efecto de la tipología del conjunto sobre la población | D2: CA=-1,78E-01x^2+1,07x-6E-01 | E2: 1,5<x<3
A3: fórmula del indicador
A4: unidad del indicador:
A5: rango de valores del indicador: | B5: 0 - 3 | C5: valor del indicador | D5: 2
A6: Tipo de indicador | B6: 3 (T=0,50) | C6: calidad ambiental | D6: =IF(D5<0,"valor del indicador fuera de rango",IF(D5<=1.5,0.178*D5^2+0.2,IF(D5<=3,-0.178*D5^2+1.07*D5-0.6,IF(D5>3,"valor del indicador fuera rango")))) -> 0.828
A7: valor del indicador | B7: calidad ambiental | C7: representación de la función de transformación
A8: 0 | B8: =0.178*A8^2+0.2 -> 0.200
A9: 0.1 | B9: 0.202
A10: 0.2 | B10: 0.207
A11: 0.5 | B11: 0.245
A12: 0.6 | B12: 0.264
A13: 0.7 | B13: 0.287
A14: 0.8 | B14: 0.314
A15: =+A14+0.2 -> 1.0 | B15: 0.378
A16: 1.2 | B16: 0.456
A17: 1.4 | B17: 0.549
A18: 1.6 | B18: =-0.178*A18^2+1.07*A18-0.6 -> 0.656
A19: 1.8 | B19: 0.749
A20: 2.0 | B20: 0.828
A21: 2.2 | B21: 0.892
A22: 2.4 | B22: 0.943
A23: 2.6 | B23: 0.979
A24: 2.8 | B24: 1.000
A25: 3.0 | B25: 1.008
